bitfinex-derivatives/quotes_ETHF0:USTF0_20250504
["timestamp","ask_amount","ask_price","bid_price","bid_amount"]
[1746355399927,7.26901,1829.2,1829.1,5.8479]
[1746355400226,7.26901,1829.2,1829.1,4.2808]
[1746355401224,3.688,1829.2,1829.1,4.57337]
[1746355401528,3.688,1829.2,1829.1,5.9645]
[1746355401722,5.398,1829.2,1829.1,5.9645]
[1746355401922,6.49131,1829.2,1829.1,5.9645]
[1746355402115,6.49131,1829.2,1829.1,3.48]
[1746355405929,6.49131,1829.2,1829.1,4.57337]
[1746355406129,6.49131,1829.2,1829.1,3.48]
[1746355406430,5.398,1829.2,1829.1,3.48]
[1746355406630,6.49131,1829.2,1829.1,3.48]
[1746355407031,6.49131,1829.2,1829.1,4.57337]
[1746355408232,6.49131,1829.2,1829.1,3.48]
[1746355408434,5.398,1829.2,1828.9,2.4845]
[1746355408731,5.398,1829.2,1828.8,0.7947]
[1746355408732,2.74697,1829.1,1829.0,3.48]
[1746355408932,3.56647,1829.1,1829.0,3.48]
[1746355409129,6.77427,1829.1,1829.0,3.48]
[1746355409333,10.46227,1829.1,1829.0,3.48]
[1746355410936,11.29157,1829.1,1829.0,3.48]
[1746355412337,11.29157,1829.1,1829.0,4.57343]
[1746355413439,11.29157,1829.1,1829.0,3.48]
[1746355414042,11.29157,1829.1,1829.0,4.57343]
[1746355418240,11.29157,1829.1,1829.0,3.48]
[1746355418440,11.29157,1829.1,1829.0,4.57343]
[1746355424549,8.08377,1829.1,1829.0,4.57343]
[1746355425244,6.9904,1829.1,1829.0,4.57343]
[1746355425742,6.9904,1829.1,1829.0,5.37393]
[1746355426341,8.08377,1829.1,1829.0,5.37393]
[1746355426743,6.9904,1829.1,1829.0,5.37393]
[1746355428946,8.08377,1829.1,1829.0,5.37393]
[1746355430546,6.9904,1829.1,1829.0,5.37393]
[1746355431943,8.08377,1829.1,1829.0,5.37393]
[1746355433549,6.9904,1829.1,1829.0,5.37393]
[1746355434554,8.08377,1829.1,1829.0,5.37393]
[1746355435546,6.9904,1829.1,1829.0,5.37393]
[1746355436243,10.64109841,1829.1,1829.0,5.37393]
[1746355436443,10.64109841,1829.1,1829.0,6.18873]
[1746355437551,11.73446841,1829.1,1829.0,6.18873]
[1746355437956,10.64109841,1829.1,1829.0,6.18873]
[1746355438943,11.73446841,1829.1,1829.0,5.0953]
[1746355439148,11.73446841,1829.1,1829.0,6.18873]
[1746355439556,11.73446841,1829.1,1829.0,5.0953]
[1746355440858,11.73446841,1829.1,1829.0,6.18873]
[1746355442560,10.64109841,1829.1,1829.0,6.18873]
[1746355447264,11.73446841,1829.1,1829.0,6.18873]
[1746355447866,10.64109841,1829.1,1829.0,6.18873]
[1746355448567,11.73446841,1829.1,1829.0,6.18873]
[1746355449566,10.64109841,1829.1,1829.0,6.18873]
[1746355454569,11.73446841,1829.1,1829.0,5.0953]
[1746355454870,10.64109841,1829.1,1829.0,6.18873]
[1746355455070,11.47259841,1829.1,1829.0,6.18873]
[1746355455771,13.29794761,1829.1,1829.0,6.18873]
[1746355459781,13.29794761,1829.1,1829.0,5.37393]
[1746355460168,13.29794761,1829.1,1829.0,4.57343]
[1746355460772,14.39131761,1829.1,1829.0,3.48]
[1746355460974,14.39131761,1829.1,1829.0,4.57343]
[1746355461174,13.29794761,1829.1,1828.8,1.6775]
[1746355461474,4.30132,1828.9,1828.7,8.37342508]
[1746355461780,2.76725,1828.8,1828.7,7.27985508]
[1746355461977,4.38195,1828.8,1828.7,7.27985508]
[1746355462281,8.06995,1828.8,1828.7,7.27985508]
[1746355463780,1.09361,1828.7,1828.6,3.477]
[1746355464080,9.57541,1828.7,1828.6,3.477]
[1746355464275,9.57541,1828.7,1828.6,4.57067]
[1746355464476,9.57541,1828.7,1828.6,3.477]
[1746355464881,10.66901,1828.7,1828.6,3.477]
[1746355465978,9.5754,1828.7,1828.5,7.27985508]
[1746355466283,2.67967,1828.6,1828.5,7.27985508]
[1746355467080,6.36767,1828.6,1828.5,7.27985508]
[1746355467672,1.09373,1828.5,1828.4,3.478]
[1746355467873,7.72043,1828.5,1828.4,3.478]
[1746355468073,11.40843,1828.5,1828.4,3.478]
[1746355469277,10.3147,1828.5,1828.2,3.53898]
[1746355469477,2.78023,1828.4,1828.2,7.01698]
[1746355469678,1.6864,1828.3,1828.2,7.01698]
[1746355471180,5.3744,1828.3,1828.2,7.01698]
[1746355471379,6.46825,1828.3,1828.2,7.01698]
[1746355471781,6.46825,1828.3,1828.2,5.9231]
[1746355471978,5.3744,1828.3,1828.2,7.01701]
[1746355472276,6.46825,1828.3,1828.2,7.01701]
[1746355472686,5.3744,1828.3,1828.2,7.01701]
[1746355472882,6.46825,1828.3,1828.2,5.9231]
[1746355473183,9.67605,1828.3,1828.2,4.3317]
[1746355474082,6.8958,1828.3,1828.2,5.42561]
[1746355474277,3.688,1828.3,1828.2,7.02441]
[1746355483398,3.688,1828.3,1828.2,5.9305]
[1746355483697,3.688,1828.3,1828.2,7.02441]
[1746355483890,5.3013,1828.3,1828.2,7.02441]
[1746355484695,6.39515,1828.3,1828.2,4.3317]
[1746355484995,7.20655,1828.3,1828.2,4.3317]
[1746355485196,6.1127,1828.3,1828.2,5.42561]
[1746355485488,6.1127,1828.3,1828.2,7.08711]
[1746355485800,7.20655,1828.3,1828.2,3.478]
[1746355486695,7.20655,1828.3,1828.2,4.57191]
[1746355488999,6.1127,1828.3,1828.1,0.8213]
[1746355489186,1.7054,1828.2,1828.1,5.39422]
[1746355489593,2.79931,1828.2,1828.1,4.3003]
[1746355490002,2.79931,1828.2,1828.1,5.39427]
[1746355490302,6.48731,1828.2,1828.1,7.00847]
[1746355491402,5.3934,1828.2,1828.1,7.00847]
[1746355492203,6.48731,1828.2,1828.1,7.00847]
[1746355492398,5.3934,1828.2,1828.1,7.00847]
[1746355492601,3.688,1828.2,1828.1,7.00847]
[1746355493197,4.78191,1828.2,1828.1,7.00847]
[1746355494602,4.78191,1828.2,1828.1,5.9145]
[1746355494804,3.688,1828.2,1828.1,7.00847]
[1746355496703,3.688,1828.2,1828.1,12.00847]
[1746355497098,6.8958,1828.5,1828.1,5.9145]
[1746355497402,6.8958,1828.5,1828.3,1.09381]
[1746355497604,6.8958,1828.5,1828.4,5.8837]
[1746355499008,6.8958,1828.5,1828.4,6.97749]
[1746355500503,3.688,1828.5,1828.4,6.97749]
[1746355500804,3.688,1828.5,1828.4,10.18529]
[1746355502299,4.7817,1828.5,1828.4,10.18529]
[1746355514920,4.7817,1828.5,1828.4,6.70829]
[1746355515118,4.7817,1828.5,1828.4,10.18429]
[1746355515721,4.7817,1828.5,1828.4,6.70829]
[1746355515920,4.7817,1828.5,1828.4,10.18429]
[1746355515921,6.3846,1828.5,1828.4,10.18429]
[1746355517022,6.3846,1828.5,1828.4,6.70829]
[1746355517222,6.3846,1828.5,1828.4,10.18429]
[1746355524327,6.3846,1828.5,1828.4,8.57399]
[1746355524529,7.2043,1828.5,1828.4,8.57399]
[1746355524825,7.2043,1828.5,1828.4,7.77759]
[1746355525024,12.2043,1828.5,1828.4,3.475]
[1746355525327,7.2043,1828.5,1828.4,4.56879]
[1746355546748,7.2043,1828.5,1828.4,3.475]
[1746355546953,16.50588,1828.5,1828.4,3.475]
[1746355547145,11.50588,1828.5,1828.4,3.475]
[1746355549555,8.29808,1828.5,1828.4,3.475]
[1746355549758,11.50588,1828.5,1828.4,4.56879]
[1746355550055,10.4121,1828.5,1828.4,4.56879]
[1746355550354,14.05866009,1828.5,1828.4,4.56879]
[1746355551257,8.42826009,1828.5,1828.4,4.56879]
[1746355551455,10.05486009,1828.5,1828.4,4.56879]
[1746355551957,6.4083,1828.5,1828.4,4.56879]
[1746355553053,7.50203,1828.5,1828.4,3.475]
[1746355553250,6.4083,1828.5,1828.4,4.56879]
[1746355553557,7.50203,1828.5,1828.4,3.475]
[1746355554460,6.4083,1828.5,1828.4,3.475]
[1746355554758,7.50203,1828.5,1828.4,3.475]
[1746355555261,6.4083,1828.5,1828.4,4.56879]
[1746355555860,6.4083,1828.5,1828.4,7.04819]
[1746355556760,7.50203,1828.5,1828.4,5.9544]
[1746355556957,7.50203,1828.5,1828.4,4.2984]
[1746355557159,7.50203,1828.5,1828.4,3.475]
[1746355557360,6.4083,1828.5,1828.4,3.475]
[1746355559260,6.4083,1828.5,1828.4,4.56879]
[1746355560456,6.4083,1828.5,1828.4,3.475]
[1746355560658,7.50203,1828.5,1828.4,3.475]
[1746355562561,6.4083,1828.5,1828.4,4.56879]
[1746355565268,6.4083,1828.5,1828.4,3.475]
[1746355565466,6.4083,1828.5,1828.4,4.56879]
[1746355566573,7.50203,1828.5,1828.4,4.56879]
[1746355566766,6.4083,1828.5,1828.4,4.56879]
[1746355568373,6.4083,1828.5,1828.4,6.20119]
[1746355571073,4.7817,1828.5,1828.4,6.20119]
[1746355585686,6.4485,1828.5,1828.4,6.20119]
[1746355586885,4.7817,1828.5,1828.4,6.20119]
[1746355594491,6.4002,1828.5,1828.4,6.20119]
[1746355594690,7.2218,1828.5,1828.4,4.56879]
[1746355595992,6.4002,1828.5,1828.4,4.56879]
[1746355596193,6.4002,1828.5,1828.4,6.26729]
[1746355597695,6.4002,1828.5,1828.4,9.47509]
[1746355598193,6.4002,1828.5,1828.4,6.26729]
[1746355598489,7.23,1828.5,1828.4,6.26729]
[1746355603395,6.4002,1828.5,1828.4,6.26729]
[1746355605206,6.4002,1828.5,1828.4,5.1735]
[1746355605405,7.2571,1828.5,1828.4,6.26729]
[1746355605599,7.2571,1828.5,1828.4,4.56879]
[1746355609808,6.4002,1828.5,1828.4,4.56879]
[1746355610008,6.4002,1828.5,1828.4,6.26279]
[1746355611910,6.4002,1828.5,1828.4,3.475]
[1746355612104,8.33793,1828.5,1828.4,3.475]
[1746355612303,7.2442,1828.5,1828.2,7.3103415]
[1746355612506,1.7378,1828.4,1828.3,3.472]
[1746355613108,5.4258,1828.4,1828.3,3.472]
[1746355613310,5.4258,1828.4,1828.3,4.56585]
[1746355613914,5.4258,1828.4,1828.3,3.472]
[1746355614313,5.4258,1828.4,1828.3,4.56585]
[1746355615312,6.5196,1828.4,1828.3,4.56585]
[1746355615714,6.5196,1828.4,1828.3,3.472]
[1746355617015,6.5196,1828.4,1828.3,4.56585]
[1746355617614,6.5196,1828.4,1828.3,3.472]
[1746355617915,6.5196,1828.4,1828.3,4.56585]
[1746355618105,6.5196,1828.4,1828.3,3.472]
[1746355619112,7.61339,1828.4,1828.3,3.472]
[1746355619312,7.61339,1828.4,1828.3,4.56585]
[1746355621615,7.61339,1828.4,1828.3,3.472]
[1746355624912,10.82119,1828.4,1828.3,3.472]
[1746355627611,7.61339,1828.4,1828.3,3.472]
[1746355627817,6.5196,1828.4,1828.3,6.0015]
[1746355628019,7.61339,1828.4,1828.3,6.0015]
[1746355628216,5.87559,1828.4,1828.3,6.0015]
[1746355628618,4.7818,1828.4,1828.3,7.09535]
[1746355629118,5.87559,1828.4,1828.3,6.0015]
[1746355629619,4.7818,1828.4,1828.3,7.09535]
[1746355629823,5.87559,1828.4,1828.3,6.0015]
[1746355630117,4.7818,1828.4,1828.3,7.09535]
[1746355630919,4.7818,1828.4,1828.3,6.0015]
[1746355631121,4.7818,1828.4,1828.3,7.09535]
[1746355632719,4.7818,1828.4,1828.3,6.0015]
[1746355632921,4.7818,1828.4,1828.3,7.09535]
[1746355636926,5.87559,1828.4,1828.3,6.0015]
[1746355637224,7.61459,1828.4,1828.3,3.472]
[1746355637826,10.82239,1828.4,1828.3,3.472]
[1746355638018,9.7286,1828.4,1828.1,2.5764]
[1746355638225,4.30171,1828.2,1828.1,3.47]
[1746355638628,5.94081,1828.2,1828.1,3.47]
[1746355639124,9.62881,1828.2,1828.1,3.47]
[1746355641230,6.42101,1828.2,1828.1,3.47]
[1746355641529,9.62881,1828.2,1828.1,3.47]
[1746355643027,1.09397,1828.1,1828.0,7.3103415]
[1746355643227,6.48987,1828.1,1828.0,7.3103415]
[1746355643928,11.48987,1828.1,1828.0,7.3103415]
[1746355644127,1.09403,1828.0,1827.9,3.471]
[1746355644328,7.58783,1828.0,1827.9,3.471]
[1746355644730,12.58783,1828.0,1827.9,3.471]
[1746355645134,16.27583,1828.0,1827.9,3.471]
[1746355645433,1.09421,1827.7,1827.6,11.5866415]
[1746355646033,4.43371,1827.7,1827.6,11.5866415]
[1746355646234,8.12171,1827.7,1827.6,11.5866415]
[1746355648336,8.12171,1827.7,1827.6,8.1176415]
[1746355648526,8.12171,1827.7,1827.6,11.5876415]
[1746355649835,9.21591,1827.7,1827.6,4.2773]
[1746355650337,9.21591,1827.7,1827.6,5.37157]
[1746355650633,9.21591,1827.7,1827.6,4.2773]
[1746355651234,9.21591,1827.7,1827.6,5.37157]
[1746355652132,9.21591,1827.7,1827.6,4.56427]
[1746355652338,9.21591,1827.7,1827.6,3.47]
[1746355653032,9.21591,1827.7,1827.6,4.56427]
[1746355653338,9.21591,1827.7,1827.6,3.47]
[1746355653735,9.21591,1827.7,1827.6,4.56427]
[1746355654137,9.21591,1827.7,1827.6,3.47]
[1746355654435,9.21591,1827.7,1827.6,4.56427]
[1746355655836,12.42371,1827.7,1827.6,4.56427]
[1746355657541,12.42371,1827.7,1827.6,3.47]
[1746355660042,12.42371,1827.7,1827.6,4.56427]
[1746355666544,12.42371,1827.7,1827.6,6.24127]
[1746355667737,11.56551,1827.7,1827.6,7.03307]
[1746355667932,4.7822,1827.7,1827.6,12.03307]
[1746355668137,1.01676,1827.7,1827.6,15.24087]
[1746355668539,1.01676,1827.7,1827.6,56.04087]
[1746355671147,1.01676,1827.7,1827.6,51.04087]
[1746355673148,4.70476,1827.7,1827.6,51.04087]
[1746355674148,1.01676,1827.7,1827.6,51.04087]
[1746355681056,4.70476,1827.7,1827.6,51.04087]
[1746355682159,1.01676,1827.7,1827.6,51.04087]
[1746355683260,4.70476,1827.7,1827.6,51.04087]
[1746355684161,1.01676,1827.7,1827.6,51.04087]
[1746355684661,0.7838,1828.0,1827.9,1.09409]
[1746355684860,4.30169,1828.3,1828.0,1.094]
[1746355685261,12.98969,1828.3,1828.0,1.094]
[1746355686661,7.98969,1828.3,1828.0,1.094]
[1746355687463,4.78189,1828.3,1828.0,1.094]
[1746355687664,3.2078,1828.2,1828.0,1.094]
[1746355687865,6.4849,1828.2,1828.0,1.094]
[1746355688065,2.729,1828.1,1828.0,1.094]
[1746355688265,6.417,1828.1,1828.0,1.094]
[1746355691358,7.51099,1828.1,1827.9,1.09407]
[1746355691561,2.391,1828.0,1827.9,1.09409]
[1746355691858,2.391,1828.0,1827.9,4.56209]
[1746355692265,6.079,1828.0,1827.9,4.56209]
[1746355694966,3.65629757,1828.4,1828.0,2.73509]
[1746355695165,1.6856,1828.3,1828.0,4.46159]
[1746355695368,0.8464,1828.2,1828.1,2.82047]
[1746355695664,1.6342,1828.2,1828.1,2.82047]
[1746355696166,5.3222,1828.2,1828.1,2.82047]
[1746355698768,5.4224,1828.2,1828.1,2.82047]
[1746355703567,5.4224,1828.2,1828.1,1.09397]
[1746355704175,3.7882,1828.2,1828.1,2.75437]
[1746355706775,4.606,1828.2,1828.1,2.75437]
[1746355708880,4.606,1828.2,1828.1,3.61787]
[1746355710281,3.7882,1828.2,1828.1,3.61787]
[1746355727692,3.7882,1828.2,1828.1,4.05118797]
[1746355727898,3.7882,1828.2,1828.1,3.61787]
[1746355731601,3.7882,1828.2,1828.1,4.06170773]
[1746355733595,3.7882,1828.2,1828.1,7.52770773]
[1746355736703,3.7882,1828.2,1828.1,7.08387]
[1746355736911,3.7882,1828.2,1828.0,7.3103415]
[1746355737107,3.3597,1828.1,1828.0,7.3103415]
[1746355737409,3.3597,1828.1,1828.0,10.7743415]
[1746355738108,7.0477,1828.1,1828.0,11.8683715]
[1746355738309,7.0477,1828.1,1828.0,10.7743415]
[1746355738513,7.0477,1828.1,1828.0,14.42951225]
[1746355739008,7.0477,1828.1,1828.0,15.52354225]
[1746355739202,7.0477,1828.1,1828.0,14.42951225]
[1746355739398,7.0477,1828.1,1828.0,15.52354225]
[1746355740311,7.0477,1828.1,1828.0,14.42951225]
[1746355740609,7.9441,1828.1,1828.0,15.52354225]
[1746355741012,7.9441,1828.1,1828.0,14.42951225]
[1746355741310,7.9441,1828.1,1828.0,14.43051225]
[1746355741610,9.03807,1828.1,1828.0,14.43051225]
[1746355741999,7.9441,1828.1,1828.0,14.43051225]
[1746355742208,7.9441,1828.1,1828.0,3.465]
[1746355743117,7.9441,1828.1,1828.0,4.55903]
[1746355743917,9.03807,1828.1,1828.0,3.465]
[1746355744307,12.24587,1828.1,1828.0,3.465]
[1746355744817,12.24587,1828.1,1828.0,4.55903]
[1746355745214,12.24587,1828.1,1828.0,3.465]
[1746355746015,12.24587,1828.1,1828.0,4.55903]
[1746355746720,12.24587,1828.1,1828.0,3.465]
[1746355749226,9.03807,1828.1,1828.0,3.465]
[1746355749416,12.24587,1828.1,1828.0,3.465]
[1746355753229,1.09421,1827.7,1827.6,11.8726315]
[1746355753427,1.09421,1827.7,1827.6,10.7783615]
[1746355753629,1.09421,1827.7,1827.6,51.5783615]
[1746355753824,1.09421,1827.7,1827.6,12.3620615]
[1746355754128,7.99001,1827.7,1827.6,10.7783615]
[1746355754328,10.38681,1827.7,1827.6,10.7783615]
[1746355754730,10.38681,1827.7,1827.6,3.465]
[1746355757831,1.09439,1827.4,1827.3,14.1431615]
[1746355758232,4.78239,1827.4,1827.3,14.1431615]
[1746355758530,4.78239,1827.4,1827.3,6.0181]
[1746355758731,6.51309,1827.4,1827.3,6.0181]
[1746355759031,6.51309,1827.4,1827.3,5.2023]
[1746355761736,4.78239,1827.4,1827.3,5.2023]
[1746355762032,4.78239,1827.4,1827.3,6.0406]
[1746355766435,4.78239,1827.4,1827.3,5.2023]
[1746355766830,6.39849,1827.4,1827.3,5.2023]
[1746355767539,6.39849,1827.4,1827.3,1.7373]
[1746355768441,7.29549,1827.4,1827.3,1.7373]
[1746355769433,1.09445,1827.3,1827.2,4.3272]
[1746355769634,1.09445,1827.3,1827.2,5.9759]
[1746355770138,4.78245,1827.3,1827.2,5.9759]
[1746355770438,7.31485,1827.3,1827.2,5.9759]
[1746355770638,10.52265,1827.3,1827.2,5.9759]
[1746355770840,10.52265,1827.3,1827.2,5.1137]
[1746355771340,10.52265,1827.3,1827.2,1.6487]
[1746355771535,1.09457,1827.1,1827.0,5.3467]
[1746355772039,1.93826,1827.2,1827.0,5.3467]
[1746355772238,3.688,1827.1,1827.0,5.3467]
[1746355773139,5.62626,1827.2,1827.0,5.3467]
[1746355773340,5.62626,1827.2,1827.1,1.5773]
[1746355775042,1.09463,1827.0,1826.9,3.465]
[1746355775236,4.30243,1827.0,1826.9,5.1273]
[1746355776143,1.09463,1827.0,1826.9,5.1273]
[1746355776343,4.78263,1827.0,1826.9,5.1273]
[1746355777438,6.47783,1827.0,1826.9,5.1273]
[1746355778549,9.68563,1827.0,1826.9,3.465]
[1746355779248,1.09469,1826.9,1826.8,1.6521]
[1746355779450,4.41629,1826.9,1826.8,1.6521]
[1746355779751,4.41629,1826.9,1826.8,2.74685]
[1746355780052,7.99047,1827.0,1826.8,2.74685]
[1746355780346,7.99047,1827.0,1826.9,1.6521]
[1746355780552,9.70227,1827.0,1826.9,1.6521]
[1746355783851,6.49447,1827.0,1826.9,1.6521]
[1746355784150,9.70227,1827.0,1826.9,1.6521]
[1746355785755,6.49447,1827.0,1826.9,1.6521]
[1746355786355,9.70227,1827.0,1826.9,1.6521]
[1746355786552,7.99047,1827.0,1826.9,1.6521]
[1746355786853,7.99047,1827.0,1826.9,3.3137]
[1746355787353,7.99047,1827.0,1826.9,2.5164]
[1746355787653,9.61847,1827.0,1826.9,2.5164]
[1746355791460,6.41067,1827.0,1826.9,1.6521]
[1746355791757,9.61847,1827.0,1826.9,1.6521]
[1746355793959,6.41067,1827.0,1826.9,1.6521]
[1746355794158,9.61847,1827.0,1826.9,1.6521]
[1746355799564,7.99047,1827.0,1826.9,1.6521]
[1746355800368,7.99047,1827.0,1826.9,2.1653447]
[1746355801361,7.99047,1827.0,1826.9,1.6521]
[1746355801666,7.57987597,1827.0,1826.9,2.16534254]
[1746355804970,9.21337597,1827.0,1826.9,2.16534254]
[1746355805766,10.11067597,1827.0,1826.9,2.16534254]
[1746355806662,10.11067597,1827.0,1826.9,1.6521]
[1746355806958,10.11067597,1827.0,1826.9,2.16534743]
[1746355807669,9.70008028,1827.0,1826.9,2.16534743]
[1746355808971,9.70008028,1827.0,1826.9,1.6521]
[1746355809670,9.70008028,1827.0,1826.9,2.15107454]
[1746355810469,9.70008028,1827.0,1826.9,1.6521]
[1746355811067,9.70008028,1827.0,1826.9,2.16534806]
[1746355811367,9.70008028,1827.0,1826.9,1.6521]
[1746355811769,9.70008028,1827.0,1826.9,2.16534787]
[1746355813864,9.70008028,1827.0,1826.9,1.6521]
[1746355814169,8.06658028,1827.0,1826.9,1.6521]
[1746355815069,7.65599023,1827.0,1826.9,2.16533757]
[1746355815268,6.56132023,1827.0,1826.9,3.26002757]
[1746355815468,3.35352023,1827.0,1826.9,8.26002757]
[1746355815868,3.14825285,1827.0,1826.9,8.26002757]
[1746355816070,2.84034846,1827.0,1826.9,8.26002757]
[1746355818373,2.84034846,1827.0,1826.9,3.26002757]
[1746355818673,2.84034846,1827.0,1826.9,8.26002757]
[1746355819571,2.84034846,1827.0,1826.9,3.26002757]
[1746355821073,2.42981156,1827.0,1826.9,3.26002757]
[1746355830279,5.02191156,1827.0,1826.9,3.26002757]
[1746355832286,4.61133837,1827.0,1826.9,3.26002757]
[1746355841280,4.2007769,1827.0,1826.9,3.26002757]
[1746355845697,4.2007769,1827.0,1826.9,6.72402757]
[1746355849299,3.99550145,1827.0,1826.9,6.72402757]
[1746355849598,3.58494874,1827.0,1826.9,6.72402757]
[1746355855801,3.17439384,1827.0,1826.9,6.72402757]
[1746355856197,6.86239384,1827.0,1826.9,6.72402757]
[1746355856400,4.27029384,1827.0,1826.9,11.72402757]
[1746355856599,4.27029384,1827.0,1826.9,14.93182757]
[1746355858299,3.96244749,1827.0,1826.9,14.93182757]
[1746355859002,3.96244749,1827.0,1826.9,11.72402757]
[1746355859401,3.96244749,1827.0,1826.9,14.93182757]
[1746355859701,6.77959685,1827.5,1827.2,2.73626]
[1746355859902,3.57179685,1827.5,1827.4,1.09439]
[1746355860200,7.25979685,1827.5,1827.4,1.09439]
[1746355860401,7.25979685,1827.5,1827.4,3.24462757]
[1746355860903,7.25979685,1827.5,1827.4,2.15023757]
[1746355861103,7.25979685,1827.5,1827.4,3.24462757]
[1746355862103,8.08559685,1827.5,1827.4,3.24462757]
[1746355862404,7.67515108,1827.5,1827.4,3.24462757]
[1746355862606,8.76948108,1827.5,1827.4,2.15023757]
[1746355862803,13.69558108,1827.5,1827.4,5.61223757]
[1746355863704,13.69558108,1827.5,1827.4,3.97523757]
[1746355863901,10.53423,1827.5,1827.4,3.97523757]
[1746355865004,9.4399,1827.5,1827.4,3.97523757]
[1746355865204,9.4399,1827.5,1827.4,5.06962757]
[1746355866399,6.2321,1827.5,1827.4,5.06962757]
[1746355866606,3.688,1827.5,1827.4,5.34869]
[1746355866996,3.688,1827.5,1827.4,7.08509]
[1746355867198,3.688,1827.5,1827.4,7.59809269]
[1746355868507,3.27759475,1827.5,1827.4,7.59809269]
[1746355872212,3.27759475,1827.5,1827.4,7.08509]
[1746355872513,3.27759475,1827.5,1827.4,7.5980931]
[1746355874716,2.86719204,1827.5,1827.4,7.5980931]
[1746355879415,3.72899204,1827.5,1827.4,7.5980931]
[1746355879604,3.72899204,1827.5,1827.4,7.08509]
[1746355879811,3.72899204,1827.5,1827.4,3.34380885]
[1746355880009,5.39459204,1827.5,1827.4,0.51301885]
[1746355880211,8.60239204,1827.5,1827.4,3.97401885]
[1746355880415,14.69672204,1827.5,1827.4,3.97401885]
[1746355880617,9.69672204,1827.5,1827.4,3.97401885]
[1746355882016,8.60239204,1827.5,1827.4,5.06840885]
[1746355883919,9.69672204,1827.5,1827.4,5.06840885]
[1746355884219,8.60239204,1827.5,1827.4,5.06840885]
[1746355886323,9.69672204,1827.5,1827.4,5.06840885]
[1746355886715,8.60239204,1827.5,1827.4,5.06840885]
[1746355888519,9.69672204,1827.5,1827.4,3.97401885]
[1746355891526,9.69672204,1827.5,1827.4,3.461]
[1746355891725,9.69672204,1827.5,1827.4,3.97414671]
[1746355893629,9.69672204,1827.5,1827.4,3.461]
[1746355893930,9.69672204,1827.5,1827.4,3.97415581]
[1746355895223,9.69672204,1827.5,1827.4,0.51315581]
[1746355900937,15.68272204,1827.5,1827.4,0.51315581]
[1746355903040,16.46322204,1827.5,1827.4,0.51315581]
[1746355903242,1.09457,1827.1,1827.0,5.1098]
[1746355903934,2.81907,1827.1,1827.0,5.1098]
[1746355904137,6.50707,1827.1,1827.0,5.1098]
[1746355904343,4.78257,1827.1,1827.0,6.20443]
[1746355905846,3.688,1827.1,1827.0,6.20443]
[1746355906845,4.78257,1827.1,1827.0,6.20443]
[1746355908448,4.78257,1827.1,1827.0,5.1098]
[1746355909647,4.78257,1827.1,1827.0,6.20443]
[1746355910047,4.78257,1827.1,1827.0,5.1098]
[1746355910242,3.688,1827.1,1827.0,6.20443]
[1746355910746,3.688,1827.1,1827.0,5.1098]
[1746355910747,4.78257,1827.1,1827.0,5.1098]
[1746355911247,4.78257,1827.1,1827.0,6.20443]
[1746355911547,4.78257,1827.1,1827.0,5.1098]
[1746355912142,4.78257,1827.1,1827.0,6.20443]
[1746355912343,4.78257,1827.1,1827.0,5.1098]
[1746355912846,7.99037,1827.1,1827.0,5.1098]
[1746355913449,7.99037,1827.1,1827.0,6.20443]
[1746355913743,6.8958,1827.1,1827.0,6.20443]
[1746355914251,7.99037,1827.1,1827.0,5.1098]
[1746355914852,6.8958,1827.1,1827.0,6.20443]
[1746355915254,3.688,1827.1,1827.0,11.20443]
[1746355915448,3.17484419,1827.1,1827.0,11.71761271]
[1746355915648,2.76430907,1827.1,1827.0,11.71761271]
[1746355915847,2.55906651,1827.1,1827.0,11.71761271]
[1746355916254,2.2512177,1827.1,1827.0,11.71761271]
[1746355917254,2.2512177,1827.1,1827.0,11.20443]
[1746355917454,2.2512177,1827.1,1827.0,11.71750976]
[1746355921657,1.84075947,1827.1,1827.0,11.71750976]
[1746355922562,1.84075947,1827.1,1827.0,6.71750976]
[1746355925762,1.84075947,1827.1,1827.0,14.03087126]
[1746355925963,1.84075947,1827.1,1827.0,19.03087126]
[1746355927665,1.84075947,1827.1,1827.0,14.03087126]
[1746355927858,1.43031067,1827.1,1827.0,14.03087126]
[1746355928060,6.7665,1827.5,1827.4,1.09439]
[1746355928262,0.7805,1827.5,1827.4,4.55539]
[1746355928559,0.7805,1827.5,1827.4,5.06846976]
[1746355928752,2.3621,1827.5,1827.4,5.06846976]
[1746355929162,6.0501,1827.5,1827.4,5.06846976]
[1746355931462,7.14443,1827.5,1827.4,3.97407976]
[1746355931669,6.0501,1827.5,1827.4,5.06846976]
[1746355933069,6.0501,1827.5,1827.4,4.55539]
[1746355933369,6.0501,1827.5,1827.4,5.0684631]
[1746355935366,6.0501,1827.5,1827.4,6.7451631]
[1746355937571,4.4685,1827.5,1827.4,6.7451631]
[1746355940872,4.05808324,1827.5,1827.4,6.7451631]
[1746355943974,5.68308324,1827.5,1827.4,6.7451631]
[1746355946377,4.05808324,1827.5,1827.4,6.7451631]
[1746355946878,3.85288045,1827.5,1827.4,7.1844059]
[1746355947073,3.44247618,1827.5,1827.4,7.1844059]
[1746355947479,3.44247618,1827.5,1827.4,6.7451631]
[1746355947875,5.08647618,1827.5,1827.4,6.7451631]
[1746355951579,5.08647618,1827.5,1827.4,5.0684631]
[1746355952079,5.08647618,1827.5,1827.4,5.0664631]
[1746355952579,3.44247618,1827.5,1827.4,5.0664631]
[1746355952779,5.14327618,1827.5,1827.4,5.0664631]
[1746355953181,4.73282837,1827.5,1827.4,5.0664631]
[1746355959278,4.32238364,1827.5,1827.4,5.0664631]
[1746355963588,2.62158364,1827.5,1827.4,5.8747631]
[1746355963788,2.62158364,1827.5,1827.4,6.7109631]